[Event "Titled Tuesday Blitz March 07 Late 2023"]
[White "Elissalt Cardenas, Hector"]
[Black "Do Valle Cardoso, Lucas"]
[WhiteFideId "3500632"]
[BlackFideId "2163144"]
[WhiteElo "2202"]
[BlackElo "2383"]
[Result "0-1"]
[Round "03"]
[TimeControl "180+2"]
[Date "2023.03.07"]
[WhiteClock "0:00:03"]
[BlackClock "0:00:19"]

1. d4 {[%clk 0:03:00]}  d5 {[%clk 0:02:59]} 2. c4 {[%clk 0:02:58]}  dxc4 {[%clk 0:02:59]} 3. Qa4+ {[%clk 0:02:50]}  Nd7 {[%clk 0:02:56]} 4. Nf3 {[%clk 0:02:46]}  Nf6 {[%clk 0:02:54]} 5. Nc3 {[%clk 0:02:44]}  a6 {[%clk 0:02:48]} 6. e4 {[%clk 0:02:40]}  e6 {[%clk 0:02:45]} 7. Bxc4 {[%clk 0:02:37]}  c6 {[%clk 0:02:34]} 8. Qd1 {[%clk 0:02:33]}  Bb4 {[%clk 0:02:28]} 9. Qe2 {[%clk 0:02:29]}  b5 {[%clk 0:02:21]} 10. Bd3 {[%clk 0:02:23]}  O-O {[%clk 0:02:21]} 11. e5 {[%clk 0:02:01]}  Nd5 {[%clk 0:02:19]} 12. O-O {[%clk 0:01:57]}  Bb7 {[%clk 0:02:05]} 13. Nxd5 {[%clk 0:01:45]}  cxd5 {[%clk 0:02:02]} 14. Bxh7+ {[%clk 0:01:45]}  Kxh7 {[%clk 0:02:02]} 15. Ng5+ {[%clk 0:01:39]}  Kg6 {[%clk 0:02:02]} 16. h4 {[%clk 0:01:11]}  Rh8 {[%clk 0:01:46]} 17. Qd3+ {[%clk 0:01:05]}  f5 {[%clk 0:01:46]} 18. exf6+ {[%clk 0:01:03]}  Kxf6 {[%clk 0:01:46]} 19. Qf3+ {[%clk 0:01:04]}  Ke7 {[%clk 0:01:44]} 20. Qf7+ {[%clk 0:00:45]}  Kd6 {[%clk 0:01:44]} 21. Bf4+ {[%clk 0:00:44]}  e5 {[%clk 0:01:41]} 22. dxe5+ {[%clk 0:00:29]}  Kc6 {[%clk 0:01:39]} 23. Rac1+ {[%clk 0:00:25]}  Bc5 {[%clk 0:01:14]} 24. b4 {[%clk 0:00:22]}  Rxh4 {[%clk 0:01:15]} 25. Be3 {[%clk 0:00:19]}  Qh8 {[%clk 0:00:41]} 26. Nh3 {[%clk 0:00:17]}  d4 {[%clk 0:00:37]} 27. Qe6+ {[%clk 0:00:16]}  Kc7 {[%clk 0:00:36]} 28. bxc5 {[%clk 0:00:15]}  Bc6 {[%clk 0:00:22]} 29. Qd6+ {[%clk 0:00:14]}  Kb7 {[%clk 0:00:22]} 30. e6 {[%clk 0:00:14]}  Rxh3 {[%clk 0:00:20]} 31. gxh3 {[%clk 0:00:12]}  Qxh3 {[%clk 0:00:20]} 32. Qh2 {[%clk 0:00:11]}  Qg4+ {[%clk 0:00:20]} 33. Qg3 {[%clk 0:00:12]}  Rh8 {[%clk 0:00:21]} 34. Bh6 {[%clk 0:00:03]}  Rxh6 {[%clk 0:00:19]} 0-1


[Site "https://www.chess.com"]

[Event "Titled Tuesday Blitz March 07 Late 2023"]
[White "Guzman, Christopher"]
[Black "Kraus, Tomas"]
[WhiteFideId "6405096"]
[BlackFideId "331708"]
[WhiteElo "2281"]
[BlackElo "2389"]
[Result "1-0"]
[Round "03"]
[TimeControl "180+2"]
[Date "2023.03.07"]
[WhiteClock "0:01:57"]
[BlackClock "0:00:02"]

1. e4 {[%clk 0:03:00]}  e6 {[%clk 0:02:59]} 2. Qe2 {[%clk 0:02:59]}  d5 {[%clk 0:02:57]} 3. exd5 {[%clk 0:03:00]}  Qxd5 {[%clk 0:02:57]} 4. Nc3 {[%clk 0:03:01]}  Qd8 {[%clk 0:02:56]} 5. Nf3 {[%clk 0:03:01]}  Nf6 {[%clk 0:02:57]} 6. g3 {[%clk 0:03:01]}  Be7 {[%clk 0:02:57]} 7. Bg2 {[%clk 0:03:02]}  O-O {[%clk 0:02:57]} 8. O-O {[%clk 0:03:03]}  c5 {[%clk 0:02:57]} 9. d3 {[%clk 0:03:03]}  Nc6 {[%clk 0:02:57]} 10. a3 {[%clk 0:03:03]}  Nd4 {[%clk 0:02:45]} 11. Qd1 {[%clk 0:03:02]}  Rb8 {[%clk 0:02:28]} 12. Bg5 {[%clk 0:03:00]}  b6 {[%clk 0:02:26]} 13. Re1 {[%clk 0:02:55]}  Bb7 {[%clk 0:02:25]} 14. Nxd4 {[%clk 0:02:53]}  cxd4 {[%clk 0:02:25]} 15. Bxf6 {[%clk 0:02:51]}  Bxf6 {[%clk 0:01:58]} 16. Ne4 {[%clk 0:02:51]}  Re8 {[%clk 0:01:46]} 17. a4 {[%clk 0:02:50]}  a5 {[%clk 0:01:44]} 18. Nd2 {[%clk 0:02:48]}  Bxg2 {[%clk 0:01:37]} 19. Kxg2 {[%clk 0:02:48]}  Qd5+ {[%clk 0:01:37]} 20. Qf3 {[%clk 0:02:48]}  Qxf3+ {[%clk 0:01:25]} 21. Kxf3 {[%clk 0:02:48]}  Rbc8 {[%clk 0:01:25]} 22. Nc4 {[%clk 0:02:48]}  Rc6 {[%clk 0:01:19]} 23. Re2 {[%clk 0:02:48]}  Rec8 {[%clk 0:01:17]} 24. h4 {[%clk 0:02:48]}  Bd8 {[%clk 0:01:11]} 25. Ke4 {[%clk 0:02:47]}  Bf6 {[%clk 0:01:08]} 26. Rae1 {[%clk 0:02:47]}  Rb8 {[%clk 0:01:02]} 27. f4 {[%clk 0:02:44]}  Rc5 {[%clk 0:01:01]} 28. b3 {[%clk 0:02:38]}  g6 {[%clk 0:01:00]} 29. Kf3 {[%clk 0:02:38]}  Kg7 {[%clk 0:00:57]} 30. Rh1 {[%clk 0:02:35]}  h5 {[%clk 0:00:57]} 31. Re4 {[%clk 0:02:35]}  b5 {[%clk 0:00:43]} 32. axb5 {[%clk 0:02:34]}  Rbxb5 {[%clk 0:00:30]} 33. Ra1 {[%clk 0:02:34]}  Kf8 {[%clk 0:00:22]} 34. Ree1 {[%clk 0:02:34]}  Rd5 {[%clk 0:00:13]} 35. Ra4 {[%clk 0:02:33]}  Bd8 {[%clk 0:00:12]} 36. Rea1 {[%clk 0:02:32]}  Ke7 {[%clk 0:00:13]} 37. Nd2 {[%clk 0:02:29]}  Rdc5 {[%clk 0:00:11]} 38. R1a2 {[%clk 0:02:28]}  Bc7 {[%clk 0:00:09]} 39. Rxd4 {[%clk 0:02:24]}  Bb6 {[%clk 0:00:08]} 40. Rc4 {[%clk 0:02:22]}  Rxc4 {[%clk 0:00:07]} 41. bxc4 {[%clk 0:02:19]}  Rb4 {[%clk 0:00:04]} 42. Ne4 {[%clk 0:02:05]}  Rb1 {[%clk 0:00:02]} 43. c5 {[%clk 0:02:02]}  Bc7 {[%clk 0:00:02]} 44. d4 {[%clk 0:02:01]}  Rc1 {[%clk 0:00:02]} 45. c3 {[%clk 0:02:00]}  Kd7 {[%clk 0:00:02]} 46. Ra3 {[%clk 0:01:57]} 1-0


[Site "https://www.chess.com"]

[Event "Titled Tuesday Blitz March 07 Late 2023"]
[White "Prem, Pranav"]
[Black "Lacey, Patrick"]
[WhiteFideId "30901057"]
[BlackFideId "2032007"]
[WhiteElo "1970"]
[BlackElo "2433"]
[Result "1-0"]
[Round "03"]
[TimeControl "180+2"]
[Date "2023.03.07"]
[WhiteClock "0:00:20"]
[BlackClock "0:00:02"]

1. d4 {[%clk 0:03:00]}  d5 {[%clk 0:02:59]} 2. c4 {[%clk 0:02:57]}  Nc6 {[%clk 0:02:58]} 3. Nf3 {[%clk 0:02:57]}  Bg4 {[%clk 0:02:57]} 4. Nc3 {[%clk 0:02:51]}  e6 {[%clk 0:02:56]} 5. Bg5 {[%clk 0:02:48]}  Be7 {[%clk 0:02:55]} 6. Bf4 {[%clk 0:02:47]}  Nf6 {[%clk 0:02:50]} 7. e3 {[%clk 0:02:46]}  O-O {[%clk 0:02:49]} 8. Bd3 {[%clk 0:02:45]}  dxc4 {[%clk 0:02:48]} 9. Bxc4 {[%clk 0:02:45]}  a6 {[%clk 0:02:47]} 10. O-O {[%clk 0:02:45]}  b5 {[%clk 0:02:29]} 11. Bd3 {[%clk 0:02:43]}  Nb4 {[%clk 0:02:27]} 12. Be2 {[%clk 0:02:30]}  c5 {[%clk 0:02:24]} 13. dxc5 {[%clk 0:02:14]}  Bxc5 {[%clk 0:02:22]} 14. a4 {[%clk 0:02:14]}  bxa4 {[%clk 0:02:05]} 15. Qxa4 {[%clk 0:02:13]}  Nbd5 {[%clk 0:01:51]} 16. Be5 {[%clk 0:02:01]}  Bh5 {[%clk 0:01:28]} 17. Rfd1 {[%clk 0:01:53]}  Qb6 {[%clk 0:01:26]} 18. Qh4 {[%clk 0:01:38]}  Bg6 {[%clk 0:01:21]} 19. Na4 {[%clk 0:01:34]}  Qb4 {[%clk 0:01:17]} 20. Nxc5 {[%clk 0:01:29]}  Qxc5 {[%clk 0:01:18]} 21. Bxa6 {[%clk 0:01:19]}  Ne4 {[%clk 0:01:01]} 22. Rac1 {[%clk 0:01:04]}  Qb6 {[%clk 0:00:43]} 23. Bd3 {[%clk 0:00:58]}  f5 {[%clk 0:00:32]} 24. Bd4 {[%clk 0:00:51]}  Qb7 {[%clk 0:00:27]} 25. Ne5 {[%clk 0:00:47]}  Nb4 {[%clk 0:00:27]} 26. Bc4 {[%clk 0:00:43]}  Nd5 {[%clk 0:00:22]} 27. f3 {[%clk 0:00:33]}  Nef6 {[%clk 0:00:19]} 28. b3 {[%clk 0:00:29]}  Ra2 {[%clk 0:00:17]} 29. Ra1 {[%clk 0:00:28]}  Rfa8 {[%clk 0:00:16]} 30. Qe1 {[%clk 0:00:27]}  Be8 {[%clk 0:00:11]} 31. Rxa2 {[%clk 0:00:26]}  Rxa2 {[%clk 0:00:11]} 32. Ra1 {[%clk 0:00:26]}  Qa8 {[%clk 0:00:10]} 33. Qb1 {[%clk 0:00:25]}  Ra3 {[%clk 0:00:10]} 34. Rxa3 {[%clk 0:00:22]}  Qxa3 {[%clk 0:00:09]} 35. e4 {[%clk 0:00:22]}  Nf4 {[%clk 0:00:07]} 36. g3 {[%clk 0:00:20]}  fxe4 {[%clk 0:00:02]} 37. gxf4 {[%clk 0:00:20]} 1-0


[Site "https://www.chess.com"]

[Event "Titled Tuesday Blitz March 07 Late 2023"]
[White "Marczuk, Dominik"]
[Black "Czopor, Maciej"]
[WhiteFideId "1111264"]
[BlackFideId "21805431"]
[WhiteElo "2174"]
[BlackElo "2324"]
[Result "1-0"]
[Round "03"]
[TimeControl "180+2"]
[Date "2023.03.07"]
[WhiteClock "0:00:09"]
[BlackClock "0:00:01"]

1. e4 {[%clk 0:02:57]}  g6 {[%clk 0:02:59]} 2. d4 {[%clk 0:02:55]}  Bg7 {[%clk 0:03:00]} 3. Nc3 {[%clk 0:02:56]}  d6 {[%clk 0:03:00]} 4. f4 {[%clk 0:02:55]}  a6 {[%clk 0:03:01]} 5. Nf3 {[%clk 0:02:54]}  b5 {[%clk 0:03:00]} 6. Bd3 {[%clk 0:02:54]}  Bb7 {[%clk 0:03:00]} 7. Qe2 {[%clk 0:02:27]}  Nd7 {[%clk 0:02:59]} 8. O-O {[%clk 0:02:14]}  Nh6 {[%clk 0:02:52]} 9. Kh1 {[%clk 0:02:04]}  c5 {[%clk 0:02:49]} 10. dxc5 {[%clk 0:02:04]}  Nxc5 {[%clk 0:02:50]} 11. Be3 {[%clk 0:01:58]}  Rc8 {[%clk 0:02:49]} 12. Bd4 {[%clk 0:01:50]}  Bxd4 {[%clk 0:02:47]} 13. Nxd4 {[%clk 0:01:51]}  O-O {[%clk 0:02:39]} 14. a3 {[%clk 0:01:41]}  e5 {[%clk 0:02:39]} 15. Nb3 {[%clk 0:01:32]}  f6 {[%clk 0:02:20]} 16. a4 {[%clk 0:01:21]}  b4 {[%clk 0:02:05]} 17. Nd5 {[%clk 0:01:21]}  Bxd5 {[%clk 0:02:05]} 18. exd5 {[%clk 0:01:21]}  a5 {[%clk 0:02:01]} 19. Nxc5 {[%clk 0:01:18]}  Rxc5 {[%clk 0:02:01]} 20. f5 {[%clk 0:01:12]}  Kg7 {[%clk 0:01:42]} 21. Qe4 {[%clk 0:00:31]}  g5 {[%clk 0:01:39]} 22. b3 {[%clk 0:00:29]}  Ng8 {[%clk 0:01:31]} 23. Bc4 {[%clk 0:00:27]}  Ne7 {[%clk 0:01:31]} 24. Rf3 {[%clk 0:00:25]}  Nc8 {[%clk 0:01:30]} 25. h4 {[%clk 0:00:21]}  h6 {[%clk 0:01:29]} 26. hxg5 {[%clk 0:00:18]}  hxg5 {[%clk 0:01:27]} 27. Rh3 {[%clk 0:00:18]}  Rh8 {[%clk 0:01:27]} 28. Rxh8 {[%clk 0:00:05]}  Qxh8+ {[%clk 0:01:28]} 29. Kg1 {[%clk 0:00:06]}  Nb6 {[%clk 0:01:28]} 30. Rf1 {[%clk 0:00:06]}  Qh4 {[%clk 0:01:17]} 31. Re1 {[%clk 0:00:06]}  Nxc4 {[%clk 0:01:14]} 32. Qxh4 {[%clk 0:00:01]}  gxh4 {[%clk 0:01:14]} 33. bxc4 {[%clk 0:00:01]}  Rxc4 {[%clk 0:01:15]} 34. Re2 {[%clk 0:00:02]}  Kh6 {[%clk 0:01:13]} 35. Kf2 {[%clk 0:00:02]}  Kg5 {[%clk 0:01:14]} 36. Ke3 {[%clk 0:00:03]}  Kxf5 {[%clk 0:01:14]} 37. Rf2+ {[%clk 0:00:02]}  Kg5 {[%clk 0:01:14]} 38. Kd3 {[%clk 0:00:02]}  f5 {[%clk 0:01:13]} 39. Kxc4 {[%clk 0:00:02]}  Kg4 {[%clk 0:01:12]} 40. Kb5 {[%clk 0:00:02]}  e4 {[%clk 0:01:12]} 41. Kxa5 {[%clk 0:00:01]}  e3 {[%clk 0:01:08]} 42. Re2 {[%clk 0:00:01]}  f4 {[%clk 0:01:09]} 43. Kxb4 {[%clk 0:00:02]}  f3 {[%clk 0:01:00]} 44. gxf3+ {[%clk 0:00:02]}  Kxf3 {[%clk 0:01:01]} 45. Re1 {[%clk 0:00:03]}  Kf2 {[%clk 0:00:35]} 46. Rh1 {[%clk 0:00:03]}  e2 {[%clk 0:00:35]} 47. a5 {[%clk 0:00:03]}  h3 {[%clk 0:00:28]} 48. a6 {[%clk 0:00:03]}  e1=Q+ {[%clk 0:00:28]} 49. Rxe1 {[%clk 0:00:03]}  Kxe1 {[%clk 0:00:29]} 50. a7 {[%clk 0:00:04]}  h2 {[%clk 0:00:30]} 51. a8=Q {[%clk 0:00:05]}  h1=Q {[%clk 0:00:31]} 52. Qe8+ {[%clk 0:00:05]}  Kd2 {[%clk 0:00:31]} 53. c4 {[%clk 0:00:03]}  Qb1+ {[%clk 0:00:30]} 54. Ka5 {[%clk 0:00:04]}  Kc3 {[%clk 0:00:27]} 55. Qc6 {[%clk 0:00:01]}  Qb4+ {[%clk 0:00:25]} 56. Ka6 {[%clk 0:00:01]}  Qxc4+ {[%clk 0:00:24]} 57. Kb6 {[%clk 0:00:02]}  Kb4 {[%clk 0:00:21]} 58. Qxd6+ {[%clk 0:00:02]}  Kb3 {[%clk 0:00:18]} 59. Qc5 {[%clk 0:00:02]}  Qh4 {[%clk 0:00:16]} 60. d6 {[%clk 0:00:03]}  Qd8+ {[%clk 0:00:16]} 61. Kb5 {[%clk 0:00:02]}  Qe8+ {[%clk 0:00:14]} 62. Kb6 {[%clk 0:00:03]}  Qd8+ {[%clk 0:00:14]} 63. Kb7 {[%clk 0:00:04]}  Qd7+ {[%clk 0:00:13]} 64. Qc7 {[%clk 0:00:04]}  Qf5 {[%clk 0:00:11]} 65. Qb6+ {[%clk 0:00:05]}  Ka2 {[%clk 0:00:09]} 66. Qc6 {[%clk 0:00:06]}  Qb1+ {[%clk 0:00:06]} 67. Kc8 {[%clk 0:00:06]}  Qf5+ {[%clk 0:00:06]} 68. d7 {[%clk 0:00:07]}  Qg4 {[%clk 0:00:03]} 69. Kc7 {[%clk 0:00:07]}  Qf4+ {[%clk 0:00:03]} 70. Qd6 {[%clk 0:00:07]}  Qc4+ {[%clk 0:00:03]} 71. Kb7 {[%clk 0:00:08]}  Qb5+ {[%clk 0:00:03]} 72. Kc7 {[%clk 0:00:07]}  Qc4+ {[%clk 0:00:03]} 73. Qc6 {[%clk 0:00:08]}  Qf4+ {[%clk 0:00:04]} 74. Kb6 {[%clk 0:00:08]}  Qb4+ {[%clk 0:00:03]} 75. Ka7 {[%clk 0:00:08]}  Qd4+ {[%clk 0:00:03]} 76. Ka8 {[%clk 0:00:09]}  Qh8+ {[%clk 0:00:01]} 77. Qc8 {[%clk 0:00:08]}  Qh1+ {[%clk 0:00:01]} 78. Kb8 {[%clk 0:00:08]}  Qh2+ {[%clk 0:00:01]} 79. Qc7 {[%clk 0:00:09]}  Qb2+ {[%clk 0:00:01]} 80. Kc8 {[%clk 0:00:09]} 1-0


[Site "https://www.chess.com"]

[Event "Titled Tuesday Blitz March 07 Late 2023"]
[White "Melikyan, Gnel"]
[Black "Grot, Blazej"]
[WhiteFideId "54109990"]
[BlackFideId "21835845"]
[WhiteElo "2138"]
[BlackElo "1823"]
[Result "1-0"]
[Round "03"]
[TimeControl "180+2"]
[Date "2023.03.07"]
[WhiteClock "0:00:21"]
[BlackClock "0:00:03"]

1. f3 {[%clk 0:02:56]}  e5 {[%clk 0:02:59]} 2. Kf2 {[%clk 0:02:57]}  d5 {[%clk 0:02:59]} 3. g3 {[%clk 0:02:56]}  Nf6 {[%clk 0:02:59]} 4. d3 {[%clk 0:02:55]}  c5 {[%clk 0:02:58]} 5. Nc3 {[%clk 0:02:55]}  Nc6 {[%clk 0:02:58]} 6. e4 {[%clk 0:02:55]}  dxe4 {[%clk 0:02:55]} 7. dxe4 {[%clk 0:02:55]}  Qc7 {[%clk 0:02:49]} 8. Be3 {[%clk 0:02:53]}  a6 {[%clk 0:02:45]} 9. Nd5 {[%clk 0:02:52]}  Nxd5 {[%clk 0:02:45]} 10. exd5 {[%clk 0:02:52]}  Nd4 {[%clk 0:02:45]} 11. c3 {[%clk 0:02:52]}  Nf5 {[%clk 0:02:45]} 12. Bc1 {[%clk 0:02:50]}  Be7 {[%clk 0:02:35]} 13. Ne2 {[%clk 0:02:36]}  O-O {[%clk 0:02:34]} 14. g4 {[%clk 0:02:35]}  Bh4+ {[%clk 0:02:20]} 15. Ng3 {[%clk 0:02:34]}  Nd6 {[%clk 0:02:03]} 16. Kg2 {[%clk 0:02:32]}  f5 {[%clk 0:02:01]} 17. gxf5 {[%clk 0:02:23]}  Nxf5 {[%clk 0:01:58]} 18. Bd3 {[%clk 0:02:22]}  e4 {[%clk 0:01:47]} 19. Nxe4 {[%clk 0:02:13]}  c4 {[%clk 0:01:39]} 20. Bb1 {[%clk 0:02:05]}  Qe5 {[%clk 0:01:21]} 21. Rg1 {[%clk 0:01:30]}  Rd8 {[%clk 0:01:15]} 22. f4 {[%clk 0:01:20]}  Qxd5 {[%clk 0:00:55]} 23. Qxd5+ {[%clk 0:01:20]}  Rxd5 {[%clk 0:00:56]} 24. Ng3 {[%clk 0:01:20]}  Nd6 {[%clk 0:00:36]} 25. Re1 {[%clk 0:01:13]}  b5 {[%clk 0:00:35]} 26. a4 {[%clk 0:01:05]}  Bb7 {[%clk 0:00:34]} 27. Kh3 {[%clk 0:01:05]}  Bf6 {[%clk 0:00:25]} 28. axb5 {[%clk 0:01:04]}  Nxb5 {[%clk 0:00:18]} 29. Be4 {[%clk 0:01:03]}  Bc8+ {[%clk 0:00:17]} 30. Kg2 {[%clk 0:01:03]}  Bb7 {[%clk 0:00:16]} 31. Be3 {[%clk 0:00:49]}  Rd7 {[%clk 0:00:14]} 32. Bxb7 {[%clk 0:00:47]}  Rxb7 {[%clk 0:00:15]} 33. Bf2 {[%clk 0:00:44]}  Nc7 {[%clk 0:00:14]} 34. Ra2 {[%clk 0:00:41]}  Nd5 {[%clk 0:00:14]} 35. Kf3 {[%clk 0:00:41]}  Rab8 {[%clk 0:00:11]} 36. Re2 {[%clk 0:00:39]}  Bd8 {[%clk 0:00:09]} 37. Rd2 {[%clk 0:00:38]}  Ne7 {[%clk 0:00:04]} 38. Rxa6 {[%clk 0:00:34]}  Ng6 {[%clk 0:00:03]} 39. Ra7 {[%clk 0:00:25]}  Rxa7 {[%clk 0:00:03]} 40. Bxa7 {[%clk 0:00:24]}  Ra8 {[%clk 0:00:04]} 41. Be3 {[%clk 0:00:25]}  Bc7 {[%clk 0:00:04]} 42. Rd7 {[%clk 0:00:24]}  Bd8 {[%clk 0:00:04]} 43. Nf5 {[%clk 0:00:22]}  Bf6 {[%clk 0:00:04]} 44. Bd4 {[%clk 0:00:21]}  Bxd4 {[%clk 0:00:02]} 45. cxd4 {[%clk 0:00:22]}  Rb8 {[%clk 0:00:02]} 46. Rxg7+ {[%clk 0:00:21]}  Kh8 {[%clk 0:00:03]} 47. Rc7 {[%clk 0:00:21]}  Rb3+ {[%clk 0:00:03]} 48. Ke4 {[%clk 0:00:21]}  Rxb2 {[%clk 0:00:03]} 49. Rc8+ {[%clk 0:00:21]} 1-0


[Site "https://www.chess.com"]

[Event "Titled Tuesday Blitz March 07 Late 2023"]
[White "Gatterer, Florian"]
[Black "Leiva, Gianmarco"]
[WhiteFideId "811688"]
[BlackFideId "3804399"]
[WhiteElo "2221"]
[BlackElo "2345"]
[Result "1/2-1/2"]
[Round "03"]
[TimeControl "180+2"]
[Date "2023.03.07"]
[WhiteClock "0:00:07"]
[BlackClock "0:00:10"]

1. c4 {[%clk 0:03:00]}  Nf6 {[%clk 0:02:43]} 2. Nf3 {[%clk 0:02:59]}  b6 {[%clk 0:02:39]} 3. g3 {[%clk 0:02:59]}  Bb7 {[%clk 0:02:40]} 4. Bg2 {[%clk 0:03:00]}  c5 {[%clk 0:02:38]} 5. O-O {[%clk 0:02:59]}  g6 {[%clk 0:02:37]} 6. Nc3 {[%clk 0:02:58]}  Bg7 {[%clk 0:02:37]} 7. Re1 {[%clk 0:02:51]}  Ne4 {[%clk 0:02:27]} 8. Nxe4 {[%clk 0:02:46]}  Bxe4 {[%clk 0:02:28]} 9. d3 {[%clk 0:02:46]}  Bb7 {[%clk 0:02:28]} 10. e4 {[%clk 0:02:46]}  Nc6 {[%clk 0:02:23]} 11. Rb1 {[%clk 0:02:39]}  O-O {[%clk 0:02:23]} 12. Be3 {[%clk 0:02:38]}  d6 {[%clk 0:02:14]} 13. d4 {[%clk 0:02:34]}  cxd4 {[%clk 0:02:14]} 14. Nxd4 {[%clk 0:02:34]}  Nxd4 {[%clk 0:02:14]} 15. Bxd4 {[%clk 0:02:33]}  Rc8 {[%clk 0:01:59]} 16. b3 {[%clk 0:02:32]}  Bxd4 {[%clk 0:01:55]} 17. Qxd4 {[%clk 0:02:31]}  Rc5 {[%clk 0:01:56]} 18. h4 {[%clk 0:02:22]}  Qc7 {[%clk 0:01:55]} 19. Bf3 {[%clk 0:02:09]}  a6 {[%clk 0:01:28]} 20. Rbd1 {[%clk 0:02:00]}  b5 {[%clk 0:01:25]} 21. cxb5 {[%clk 0:01:58]}  axb5 {[%clk 0:01:26]} 22. h5 {[%clk 0:01:51]}  gxh5 {[%clk 0:01:26]} 23. Kg2 {[%clk 0:01:45]}  Ra8 {[%clk 0:01:14]} 24. Rd2 {[%clk 0:01:38]}  Re5 {[%clk 0:00:47]} 25. Re3 {[%clk 0:01:14]}  Qc5 {[%clk 0:00:41]} 26. Qb2 {[%clk 0:01:09]}  b4 {[%clk 0:00:38]} 27. Rc2 {[%clk 0:01:07]}  Qa5 {[%clk 0:00:38]} 28. Rd2 {[%clk 0:00:59]}  Rc8 {[%clk 0:00:34]} 29. Rc2 {[%clk 0:00:53]}  Rcc5 {[%clk 0:00:23]} 30. Rxc5 {[%clk 0:00:53]}  Qxc5 {[%clk 0:00:21]} 31. Qe2 {[%clk 0:00:52]}  Bc8 {[%clk 0:00:18]} 32. Kh2 {[%clk 0:00:45]}  Rg5 {[%clk 0:00:18]} 33. Rd3 {[%clk 0:00:36]}  h4 {[%clk 0:00:12]} 34. Bg2 {[%clk 0:00:28]}  hxg3+ {[%clk 0:00:12]} 35. Rxg3 {[%clk 0:00:28]}  Qe5 {[%clk 0:00:12]} 36. Qe3 {[%clk 0:00:25]}  Rxg3 {[%clk 0:00:12]} 37. fxg3 {[%clk 0:00:25]}  Kg7 {[%clk 0:00:09]} 38. Qd2 {[%clk 0:00:23]}  h5 {[%clk 0:00:09]} 39. Qxb4 {[%clk 0:00:22]}  h4 {[%clk 0:00:09]} 40. Qe1 {[%clk 0:00:22]}  Qb2 {[%clk 0:00:05]} 41. Qe3 {[%clk 0:00:20]}  f6 {[%clk 0:00:04]} 42. gxh4 {[%clk 0:00:17]}  Qxa2 {[%clk 0:00:03]} 43. Qg3+ {[%clk 0:00:17]}  Kf8 {[%clk 0:00:04]} 44. h5 {[%clk 0:00:18]}  Qd2 {[%clk 0:00:04]} 45. Qg6 {[%clk 0:00:17]}  Qf4+ {[%clk 0:00:05]} 46. Kh1 {[%clk 0:00:17]}  Qc1+ {[%clk 0:00:05]} 47. Kh2 {[%clk 0:00:17]}  Qf4+ {[%clk 0:00:06]} 48. Kh1 {[%clk 0:00:17]}  Qh4+ {[%clk 0:00:06]} 49. Kg1 {[%clk 0:00:17]}  Qg4 {[%clk 0:00:02]} 50. Qxg4 {[%clk 0:00:11]}  Bxg4 {[%clk 0:00:03]} 51. h6 {[%clk 0:00:12]}  Kg8 {[%clk 0:00:03]} 52. b4 {[%clk 0:00:12]}  Kh7 {[%clk 0:00:04]} 53. Kf2 {[%clk 0:00:12]}  Kxh6 {[%clk 0:00:04]} 54. Ke3 {[%clk 0:00:13]}  Bd7 {[%clk 0:00:04]} 55. Bf1 {[%clk 0:00:12]}  e5 {[%clk 0:00:04]} 56. b5 {[%clk 0:00:12]}  Bc8 {[%clk 0:00:04]} 57. b6 {[%clk 0:00:13]}  Bb7 {[%clk 0:00:04]} 58. Bc4 {[%clk 0:00:13]}  f5 {[%clk 0:00:04]} 59. Bd5 {[%clk 0:00:13]}  f4+ {[%clk 0:00:04]} 60. Kf3 {[%clk 0:00:14]}  Bc8 {[%clk 0:00:03]} 61. b7 {[%clk 0:00:14]}  Bxb7 {[%clk 0:00:03]} 62. Bxb7 {[%clk 0:00:14]}  Kg5 {[%clk 0:00:04]} 63. Bd5 {[%clk 0:00:15]}  Kh4 {[%clk 0:00:05]} 64. Bc6 {[%clk 0:00:15]}  Kg5 {[%clk 0:00:05]} 65. Bd5 {[%clk 0:00:16]}  Kh4 {[%clk 0:00:06]} 66. Bc4 {[%clk 0:00:15]}  Kg5 {[%clk 0:00:06]} 67. Kf2 {[%clk 0:00:15]}  Kg4 {[%clk 0:00:05]} 68. Be2+ {[%clk 0:00:14]}  Kh3 {[%clk 0:00:04]} 69. Kf3 {[%clk 0:00:15]}  Kh2 {[%clk 0:00:03]} 70. Bc4 {[%clk 0:00:14]}  Kg1 {[%clk 0:00:03]} 71. Bd5 {[%clk 0:00:15]}  Kf1 {[%clk 0:00:04]} 72. Bc6 {[%clk 0:00:15]}  Ke1 {[%clk 0:00:04]} 73. Bd5 {[%clk 0:00:16]}  Kd2 {[%clk 0:00:05]} 74. Be6 {[%clk 0:00:16]}  Kd3 {[%clk 0:00:06]} 75. Bd5 {[%clk 0:00:17]}  Kd2 {[%clk 0:00:06]} 76. Be6 {[%clk 0:00:17]}  Ke1 {[%clk 0:00:07]} 77. Bg4 {[%clk 0:00:11]}  Kd2 {[%clk 0:00:07]} 78. Bh3 {[%clk 0:00:10]}  Kd3 {[%clk 0:00:08]} 79. Bf5 {[%clk 0:00:08]}  Kd4 {[%clk 0:00:09]} 80. Be6 {[%clk 0:00:07]}  Kc3 {[%clk 0:00:09]} 81. Bd5 {[%clk 0:00:07]}  Kd2 {[%clk 0:00:10]} 1/2-1/2


[Site "https://www.chess.com"]

[Event "Titled Tuesday Blitz March 07 Late 2023"]
[White "Kielinkei"]
[Black "Gerzhoy, Leonid"]
[BlackFideId "2806126"]
[WhiteElo "2411"]
[BlackElo "2594"]
[Result "0-1"]
[Round "03"]
[TimeControl "180+2"]
[Date "2023.03.07"]
[WhiteClock "0:00:48"]
[BlackClock "0:01:08"]

1. d4 {[%clk 0:03:00]}  Nf6 {[%clk 0:02:59]} 2. c4 {[%clk 0:03:00]}  d6 {[%clk 0:02:59]} 3. g3 {[%clk 0:02:59]}  e5 {[%clk 0:02:58]} 4. dxe5 {[%clk 0:02:58]}  dxe5 {[%clk 0:02:57]} 5. Qxd8+ {[%clk 0:02:57]}  Kxd8 {[%clk 0:02:58]} 6. Bg2 {[%clk 0:02:57]}  c6 {[%clk 0:02:55]} 7. Nc3 {[%clk 0:02:57]}  Bb4 {[%clk 0:02:54]} 8. Bg5 {[%clk 0:02:56]}  Bxc3+ {[%clk 0:02:52]} 9. bxc3 {[%clk 0:02:56]}  Ke7 {[%clk 0:02:52]} 10. O-O-O {[%clk 0:02:51]}  Be6 {[%clk 0:02:49]} 11. Nf3 {[%clk 0:02:42]}  Nd7 {[%clk 0:02:46]} 12. Nd2 {[%clk 0:02:42]}  h6 {[%clk 0:02:19]} 13. Bxf6+ {[%clk 0:02:32]}  Nxf6 {[%clk 0:02:18]} 14. Kb2 {[%clk 0:02:29]}  Rhd8 {[%clk 0:02:17]} 15. c5 {[%clk 0:02:21]}  Rd7 {[%clk 0:02:12]} 16. Ne4 {[%clk 0:02:14]}  Nxe4 {[%clk 0:02:10]} 17. Bxe4 {[%clk 0:02:13]}  Rad8 {[%clk 0:02:09]} 18. Rxd7+ {[%clk 0:01:52]}  Rxd7 {[%clk 0:02:09]} 19. Kc2 {[%clk 0:01:52]}  f5 {[%clk 0:01:51]} 20. Bg2 {[%clk 0:01:47]}  e4 {[%clk 0:01:50]} 21. a3 {[%clk 0:01:40]}  Bc4 {[%clk 0:01:42]} 22. e3 {[%clk 0:01:21]}  Rd5 {[%clk 0:01:38]} 23. g4 {[%clk 0:01:10]}  Rxc5 {[%clk 0:01:29]} 24. gxf5 {[%clk 0:01:08]}  Rxf5 {[%clk 0:01:27]} 25. Bxe4 {[%clk 0:01:04]}  Rxf2+ {[%clk 0:01:26]} 26. Kb1 {[%clk 0:01:04]}  Rf1+ {[%clk 0:01:15]} 27. Rxf1 {[%clk 0:01:03]}  Bxf1 {[%clk 0:01:15]} 28. Kc2 {[%clk 0:01:03]}  Kd6 {[%clk 0:01:15]} 29. Bf3 {[%clk 0:01:02]}  b5 {[%clk 0:01:14]} 30. Kd2 {[%clk 0:00:59]}  a5 {[%clk 0:01:13]} 31. h4 {[%clk 0:00:58]}  g5 {[%clk 0:01:11]} 32. hxg5 {[%clk 0:00:56]}  hxg5 {[%clk 0:01:11]} 33. e4 {[%clk 0:00:57]}  c5 {[%clk 0:01:09]} 34. Ke3 {[%clk 0:00:55]}  Ke5 {[%clk 0:01:09]} 35. Bg4 {[%clk 0:00:49]}  b4 {[%clk 0:01:08]} 36. c4 {[%clk 0:00:48]} 0-1


[Site "https://www.chess.com"]